Workbook

Sheet DB_Fish
A1: Id(int) | B1: Exp(int)
A2: 等级 | B2: 总经验
A3: 1 | B3: 1000
A4: =A3+1 -> 2 | B4: =$B$3*A4+ROUNDDOWN(A4^2,0)*100 -> 2400
A5: 3 | B5: =$B$3*A5+ROUNDDOWN(A5^2,0)*100 -> 3900
A6: 4 | B6: =$B$3*A6+ROUNDDOWN(A6^2,0)*100 -> 5600
A7: 5 | B7: =$B$3*A7+ROUNDDOWN(A7^2,0)*100 -> 7500
A8: 6 | B8: =$B$3*A8+ROUNDDOWN(A8^2,0)*100 -> 9600
A9: 7 | B9: =$B$3*A9+ROUNDDOWN(A9^2,0)*100 -> 11900
A10: 8 | B10: =$B$3*A10+ROUNDDOWN(A10^2,0)*100 -> 14400
A11: 9 | B11: =$B$3*A11+ROUNDDOWN(A11^2,0)*100 -> 17100
A12: 10 | B12: =$B$3*A12+ROUNDDOWN(A12^2,0)*100 -> 20000
A13: 11 | B13: =$B$3*A13+ROUNDDOWN(A13^2,0)*100 -> 23100
A14: 12 | B14: =$B$3*A14+ROUNDDOWN(A14^2,0)*100 -> 26400
A15: 13 | B15: =$B$3*A15+ROUNDDOWN(A15^2,0)*100 -> 29900
A16: 14 | B16: =$B$3*A16+ROUNDDOWN(A16^2,0)*100 -> 33600
A17: 15 | B17: =$B$3*A17+ROUNDDOWN(A17^2,0)*100 -> 37500
A18: 16 | B18: =$B$3*A18+ROUNDDOWN(A18^2,0)*100 -> 41600
A19: 17 | B19: =$B$3*A19+ROUNDDOWN(A19^2,0)*100 -> 45900
A20: 18 | B20: =$B$3*A20+ROUNDDOWN(A20^2,0)*100 -> 50400
A21: 19 | B21: =$B$3*A21+ROUNDDOWN(A21^2,0)*100 -> 55100
A22: 20 | B22: =$B$3*A22+ROUNDDOWN(A22^2,0)*100 -> 60000
A23: 21 | B23: =$B$3*A23+ROUNDDOWN(A23^2,0)*100 -> 65100
A24: 22 | B24: =$B$3*A24+ROUNDDOWN(A24^2,0)*100 -> 70400
A25: 23 | B25: =$B$3*A25+ROUNDDOWN(A25^2,0)*100 -> 75900
A26: 24 | B26: =$B$3*A26+ROUNDDOWN(A26^2,0)*100 -> 81600
A27: 25 | B27: =$B$3*A27+ROUNDDOWN(A27^2,0)*100 -> 87500
A28: 26 | B28: =$B$3*A28+ROUNDDOWN(A28^2,0)*100 -> 93600
A29: 27 | B29: =$B$3*A29+ROUNDDOWN(A29^2,0)*100 -> 99900
A30: 28 | B30: =$B$3*A30+ROUNDDOWN(A30^2,0)*100 -> 106400
A31: 29 | B31: =$B$3*A31+ROUNDDOWN(A31^2,0)*100 -> 113100
A32: 30 | B32: =$B$3*A32+ROUNDDOWN(A32^2,0)*100 -> 120000
A33: 31 | B33: =$B$3*A33+ROUNDDOWN(A33^2,0)*100 -> 127100
A34: 32 | B34: =$B$3*A34+ROUNDDOWN(A34^2,0)*100 -> 134400
A35: 33 | B35: =$B$3*A35+ROUNDDOWN(A35^2,0)*100 -> 141900
A36: 34 | B36: =$B$3*A36+ROUNDDOWN(A36^2,0)*100 -> 149600
A37: 35 | B37: =$B$3*A37+ROUNDDOWN(A37^2,0)*100 -> 157500
A38: 36 | B38: =$B$3*A38+ROUNDDOWN(A38^2,0)*100 -> 165600
A39: 37 | B39: =$B$3*A39+ROUNDDOWN(A39^2,0)*100 -> 173900
A40: 38 | B40: =$B$3*A40+ROUNDDOWN(A40^2,0)*100 -> 182400
A41: 39 | B41: =$B$3*A41+ROUNDDOWN(A41^2,0)*100 -> 191100
A42: 40 | B42: =$B$3*A42+ROUNDDOWN(A42^2,0)*100 -> 200000
A43: 41 | B43: =$B$3*A43+ROUNDDOWN(A43^2,0)*100 -> 209100
A44: 42 | B44: =$B$3*A44+ROUNDDOWN(A44^2,0)*100 -> 218400
A45: 43 | B45: =$B$3*A45+ROUNDDOWN(A45^2,0)*100 -> 227900
A46: 44 | B46: =$B$3*A46+ROUNDDOWN(A46^2,0)*100 -> 237600
A47: 45 | B47: =$B$3*A47+ROUNDDOWN(A47^2,0)*100 -> 247500
A48: 46 | B48: =$B$3*A48+ROUNDDOWN(A48^2,0)*100 -> 257600
A49: 47 | B49: =$B$3*A49+ROUNDDOWN(A49^2,0)*100 -> 267900
A50: 48 | B50: =$B$3*A50+ROUNDDOWN(A50^2,0)*100 -> 278400
A51: 49 | B51: =$B$3*A51+ROUNDDOWN(A51^2,0)*100 -> 289100
A52: 50 | B52: =$B$3*A52+ROUNDDOWN(A52^2,0)*100 -> 300000
A53: 51 | B53: =$B$3*A53+ROUNDDOWN(A53^2,0)*100 -> 311100
A54: 52 | B54: =$B$3*A54+ROUNDDOWN(A54^2,0)*100 -> 322400
A55: 53 | B55: =$B$3*A55+ROUNDDOWN(A55^2,0)*100 -> 333900
A56: 54 | B56: =$B$3*A56+ROUNDDOWN(A56^2,0)*100 -> 345600
A57: 55 | B57: =$B$3*A57+ROUNDDOWN(A57^2,0)*100 -> 357500
A58: 56 | B58: =$B$3*A58+ROUNDDOWN(A58^2,0)*100 -> 369600
A59: 57 | B59: =$B$3*A59+ROUNDDOWN(A59^2,0)*100 -> 381900
A60: 58 | B60: =$B$3*A60+ROUNDDOWN(A60^2,0)*100 -> 394400
A61: 59 | B61: =$B$3*A61+ROUNDDOWN(A61^2,0)*100 -> 407100
A62: 60 | B62: =$B$3*A62+ROUNDDOWN(A62^2,0)*100 -> 420000
A63: 61 | B63: =$B$3*A63+ROUNDDOWN(A63^2,0)*100 -> 433100
A64: 62 | B64: =$B$3*A64+ROUNDDOWN(A64^2,0)*100 -> 446400
A65: 63 | B65: =$B$3*A65+ROUNDDOWN(A65^2,0)*100 -> 459900
A66: 64 | B66: =$B$3*A66+ROUNDDOWN(A66^2,0)*100 -> 473600
A67: 65 | B67: =$B$3*A67+ROUNDDOWN(A67^2,0)*100 -> 487500
A68: 66 | B68: =$B$3*A68+ROUNDDOWN(A68^2,0)*100 -> 501600
A69: 67 | B69: =$B$3*A69+ROUNDDOWN(A69^2,0)*100 -> 515900
A70: 68 | B70: =$B$3*A70+ROUNDDOWN(A70^2,0)*100 -> 530400
A71: 69 | B71: =$B$3*A71+ROUNDDOWN(A71^2,0)*100 -> 545100
A72: 70 | B72: =$B$3*A72+ROUNDDOWN(A72^2,0)*100 -> 560000
A73: 71 | B73: =$B$3*A73+ROUNDDOWN(A73^2,0)*100 -> 575100
A74: 72 | B74: =$B$3*A74+ROUNDDOWN(A74^2,0)*100 -> 590400
A75: 73 | B75: =$B$3*A75+ROUNDDOWN(A75^2,0)*100 -> 605900
A76: 74 | B76: =$B$3*A76+ROUNDDOWN(A76^2,0)*100 -> 621600
A77: 75 | B77: =$B$3*A77+ROUNDDOWN(A77^2,0)*100 -> 637500
A78: 76 | B78: =$B$3*A78+ROUNDDOWN(A78^2,0)*100 -> 653600
A79: 77 | B79: =$B$3*A79+ROUNDDOWN(A79^2,0)*100 -> 669900
A80: 78 | B80: =$B$3*A80+ROUNDDOWN(A80^2,0)*100 -> 686400
A81: 79 | B81: =$B$3*A81+ROUNDDOWN(A81^2,0)*100 -> 703100
A82: 80 | B82: =$B$3*A82+ROUNDDOWN(A82^2,0)*100 -> 720000
A83: 81 | B83: =$B$3*A83+ROUNDDOWN(A83^2,0)*100 -> 737100
A84: 82 | B84: =$B$3*A84+ROUNDDOWN(A84^2,0)*100 -> 754400
A85: 83 | B85: =$B$3*A85+ROUNDDOWN(A85^2,0)*100 -> 771900
A86: 84 | B86: =$B$3*A86+ROUNDDOWN(A86^2,0)*100 -> 789600
A87: 85 | B87: =$B$3*A87+ROUNDDOWN(A87^2,0)*100 -> 807500
A88: 86 | B88: =$B$3*A88+ROUNDDOWN(A88^2,0)*100 -> 825600
A89: 87 | B89: =$B$3*A89+ROUNDDOWN(A89^2,0)*100 -> 843900
A90: 88 | B90: =$B$3*A90+ROUNDDOWN(A90^2,0)*100 -> 862400
A91: 89 | B91: =$B$3*A91+ROUNDDOWN(A91^2,0)*100 -> 881100
A92: 90 | B92: =$B$3*A92+ROUNDDOWN(A92^2,0)*100 -> 900000
A93: 91 | B93: =$B$3*A93+ROUNDDOWN(A93^2,0)*100 -> 919100
A94: 92 | B94: =$B$3*A94+ROUNDDOWN(A94^2,0)*100 -> 938400
A95: 93 | B95: =$B$3*A95+ROUNDDOWN(A95^2,0)*100 -> 957900
A96: 94 | B96: =$B$3*A96+ROUNDDOWN(A96^2,0)*100 -> 977600
A97: 95 | B97: =$B$3*A97+ROUNDDOWN(A97^2,0)*100 -> 997500
A98: 96 | B98: =$B$3*A98+ROUNDDOWN(A98^2,0)*100 -> 1017600
A99: 97 | B99: =$B$3*A99+ROUNDDOWN(A99^2,0)*100 -> 1037900
A100: 98 | B100: =$B$3*A100+ROUNDDOWN(A100^2,0)*100 -> 1058400
A101: 99 | B101: =$B$3*A101+ROUNDDOWN(A101^2,0)*100 -> 1079100
A102: 100 | B102: =$B$3*A102+ROUNDDOWN(A102^2,0)*100 -> 1100000
A103: 101 | B103: =$B$3*A103+ROUNDDOWN(A103^2,0)*100 -> 1121100
A104: 102 | B104: =$B$3*A104+ROUNDDOWN(A104^2,0)*100 -> 1142400
A105: =A104+1 -> 103 | B105: =$B$3*A105+ROUNDDOWN(A105^2,0)*100 -> 1163900
A106: 104 | B106: =$B$3*A106+ROUNDDOWN(A106^2,0)*100 -> 1185600
A107: 105 | B107: =$B$3*A107+ROUNDDOWN(A107^2,0)*100 -> 1207500
A108: 106 | B108: =$B$3*A108+ROUNDDOWN(A108^2,0)*100 -> 1229600
A109: 107 | B109: =$B$3*A109+ROUNDDOWN(A109^2,0)*100 -> 1251900
A110: 108 | B110: =$B$3*A110+ROUNDDOWN(A110^2,0)*100 -> 1274400
A111: 109 | B111: =$B$3*A111+ROUNDDOWN(A111^2,0)*100 -> 1297100
A112: 110 | B112: =$B$3*A112+ROUNDDOWN(A112^2,0)*100 -> 1320000
A113: 111 | B113: =$B$3*A113+ROUNDDOWN(A113^2,0)*100 -> 1343100
A114: 112 | B114: =$B$3*A114+ROUNDDOWN(A114^2,0)*100 -> 1366400
A115: 113 | B115: =$B$3*A115+ROUNDDOWN(A115^2,0)*100 -> 1389900
A116: 114 | B116: =$B$3*A116+ROUNDDOWN(A116^2,0)*100 -> 1413600
A117: 115 | B117: =$B$3*A117+ROUNDDOWN(A117^2,0)*100 -> 1437500
A118: 116 | B118: =$B$3*A118+ROUNDDOWN(A118^2,0)*100 -> 1461600
A119: 117 | B119: =$B$3*A119+ROUNDDOWN(A119^2,0)*100 -> 1485900
A120: 118 | B120: =$B$3*A120+ROUNDDOWN(A120^2,0)*100 -> 1510400
A121: 119 | B121: =$B$3*A121+ROUNDDOWN(A121^2,0)*100 -> 1535100
A122: 120 | B122: =$B$3*A122+ROUNDDOWN(A122^2,0)*100 -> 1560000
A123: 121 | B123: =$B$3*A123+ROUNDDOWN(A123^2,0)*100 -> 1585100
A124: 122 | B124: =$B$3*A124+ROUNDDOWN(A124^2,0)*100 -> 1610400
A125: 123 | B125: =$B$3*A125+ROUNDDOWN(A125^2,0)*100 -> 1635900
A126: 124 | B126: =$B$3*A126+ROUNDDOWN(A126^2,0)*100 -> 1661600
A127: 125 | B127: =$B$3*A127+ROUNDDOWN(A127^2,0)*100 -> 1687500
A128: 126 | B128: =$B$3*A128+ROUNDDOWN(A128^2,0)*100 -> 1713600
A129: 127 | B129: =$B$3*A129+ROUNDDOWN(A129^2,0)*100 -> 1739900
A130: 128 | B130: =$B$3*A130+ROUNDDOWN(A130^2,0)*100 -> 1766400
A131: 129 | B131: =$B$3*A131+ROUNDDOWN(A131^2,0)*100 -> 1793100
A132: 130 | B132: =$B$3*A132+ROUNDDOWN(A132^2,0)*100 -> 1820000
A133: 131 | B133: =$B$3*A133+ROUNDDOWN(A133^2,0)*100 -> 1847100
A134: 132 | B134: =$B$3*A134+ROUNDDOWN(A134^2,0)*100 -> 1874400
A135: 133 | B135: =$B$3*A135+ROUNDDOWN(A135^2,0)*100 -> 1901900
A136: 134 | B136: =$B$3*A136+ROUNDDOWN(A136^2,0)*100 -> 1929600
A137: 135 | B137: =$B$3*A137+ROUNDDOWN(A137^2,0)*100 -> 1957500
A138: 136 | B138: =$B$3*A138+ROUNDDOWN(A138^2,0)*100 -> 1985600
A139: 137 | B139: =$B$3*A139+ROUNDDOWN(A139^2,0)*100 -> 2013900
A140: 138 | B140: =$B$3*A140+ROUNDDOWN(A140^2,0)*100 -> 2042400
A141: 139 | B141: =$B$3*A141+ROUNDDOWN(A141^2,0)*100 -> 2071100
A142: 140 | B142: =$B$3*A142+ROUNDDOWN(A142^2,0)*100 -> 2100000
A143: 141 | B143: =$B$3*A143+ROUNDDOWN(A143^2,0)*100 -> 2129100
A144: 142 | B144: =$B$3*A144+ROUNDDOWN(A144^2,0)*100 -> 2158400
A145: 143 | B145: =$B$3*A145+ROUNDDOWN(A145^2,0)*100 -> 2187900
A146: 144 | B146: =$B$3*A146+ROUNDDOWN(A146^2,0)*100 -> 2217600
A147: 145 | B147: =$B$3*A147+ROUNDDOWN(A147^2,0)*100 -> 2247500
A148: 146 | B148: =$B$3*A148+ROUNDDOWN(A148^2,0)*100 -> 2277600
A149: 147 | B149: =$B$3*A149+ROUNDDOWN(A149^2,0)*100 -> 2307900
A150: 148 | B150: =$B$3*A150+ROUNDDOWN(A150^2,0)*100 -> 2338400
A151: 149 | B151: =$B$3*A151+ROUNDDOWN(A151^2,0)*100 -> 2369100
A152: 150 | B152: =$B$3*A152+ROUNDDOWN(A152^2,0)*100 -> 2400000
A153: 151 | B153: =$B$3*A153+ROUNDDOWN(A153^2,0)*100 -> 2431100
A154: 152 | B154: =$B$3*A154+ROUNDDOWN(A154^2,0)*100 -> 2462400
A155: 153 | B155: =$B$3*A155+ROUNDDOWN(A155^2,0)*100 -> 2493900
A156: 154 | B156: =$B$3*A156+ROUNDDOWN(A156^2,0)*100 -> 2525600
A157: 155 | B157: =$B$3*A157+ROUNDDOWN(A157^2,0)*100 -> 2557500
A158: 156 | B158: =$B$3*A158+ROUNDDOWN(A158^2,0)*100 -> 2589600
A159: 157 | B159: =$B$3*A159+ROUNDDOWN(A159^2,0)*100 -> 2621900
A160: 158 | B160: =$B$3*A160+ROUNDDOWN(A160^2,0)*100 -> 2654400
A161: 159 | B161: =$B$3*A161+ROUNDDOWN(A161^2,0)*100 -> 2687100
A162: 160 | B162: =$B$3*A162+ROUNDDOWN(A162^2,0)*100 -> 2720000
A163: 161 | B163: =$B$3*A163+ROUNDDOWN(A163^2,0)*100 -> 2753100
A164: 162 | B164: =$B$3*A164+ROUNDDOWN(A164^2,0)*100 -> 2786400
A165: 163 | B165: =$B$3*A165+ROUNDDOWN(A165^2,0)*100 -> 2819900
A166: 164 | B166: =$B$3*A166+ROUNDDOWN(A166^2,0)*100 -> 2853600
A167: 165 | B167: =$B$3*A167+ROUNDDOWN(A167^2,0)*100 -> 2887500
A168: 166 | B168: =$B$3*A168+ROUNDDOWN(A168^2,0)*100 -> 2921600
A169: =A168+1 -> 167 | B169: =$B$3*A169+ROUNDDOWN(A169^2,0)*100 -> 2955900
A170: 168 | B170: =$B$3*A170+ROUNDDOWN(A170^2,0)*100 -> 2990400
A171: 169 | B171: =$B$3*A171+ROUNDDOWN(A171^2,0)*100 -> 3025100
A172: 170 | B172: =$B$3*A172+ROUNDDOWN(A172^2,0)*100 -> 3060000
A173: 171 | B173: =$B$3*A173+ROUNDDOWN(A173^2,0)*100 -> 3095100
A174: 172 | B174: =$B$3*A174+ROUNDDOWN(A174^2,0)*100 -> 3130400
A175: 173 | B175: =$B$3*A175+ROUNDDOWN(A175^2,0)*100 -> 3165900
A176: 174 | B176: =$B$3*A176+ROUNDDOWN(A176^2,0)*100 -> 3201600
A177: 175 | B177: =$B$3*A177+ROUNDDOWN(A177^2,0)*100 -> 3237500
A178: 176 | B178: =$B$3*A178+ROUNDDOWN(A178^2,0)*100 -> 3273600
A179: 177 | B179: =$B$3*A179+ROUNDDOWN(A179^2,0)*100 -> 3309900
A180: 178 | B180: =$B$3*A180+ROUNDDOWN(A180^2,0)*100 -> 3346400
A181: 179 | B181: =$B$3*A181+ROUNDDOWN(A181^2,0)*100 -> 3383100
A182: 180 | B182: =$B$3*A182+ROUNDDOWN(A182^2,0)*100 -> 3420000
A183: 181 | B183: =$B$3*A183+ROUNDDOWN(A183^2,0)*100 -> 3457100
A184: 182 | B184: =$B$3*A184+ROUNDDOWN(A184^2,0)*100 -> 3494400
A185: 183 | B185: =$B$3*A185+ROUNDDOWN(A185^2,0)*100 -> 3531900
A186: 184 | B186: =$B$3*A186+ROUNDDOWN(A186^2,0)*100 -> 3569600
A187: 185 | B187: =$B$3*A187+ROUNDDOWN(A187^2,0)*100 -> 3607500
A188: 186 | B188: =$B$3*A188+ROUNDDOWN(A188^2,0)*100 -> 3645600
A189: 187 | B189: =$B$3*A189+ROUNDDOWN(A189^2,0)*100 -> 3683900
A190: 188 | B190: =$B$3*A190+ROUNDDOWN(A190^2,0)*100 -> 3722400
A191: 189 | B191: =$B$3*A191+ROUNDDOWN(A191^2,0)*100 -> 3761100
A192: 190 | B192: =$B$3*A192+ROUNDDOWN(A192^2,0)*100 -> 3800000
A193: 191 | B193: =$B$3*A193+ROUNDDOWN(A193^2,0)*100 -> 3839100
A194: 192 | B194: =$B$3*A194+ROUNDDOWN(A194^2,0)*100 -> 3878400
A195: 193 | B195: =$B$3*A195+ROUNDDOWN(A195^2,0)*100 -> 3917900
A196: 194 | B196: =$B$3*A196+ROUNDDOWN(A196^2,0)*100 -> 3957600
A197: 195 | B197: =$B$3*A197+ROUNDDOWN(A197^2,0)*100 -> 3997500
A198: 196 | B198: =$B$3*A198+ROUNDDOWN(A198^2,0)*100 -> 4037600
A199: 197 | B199: =$B$3*A199+ROUNDDOWN(A199^2,0)*100 -> 4077900
A200: 198 | B200: =$B$3*A200+ROUNDDOWN(A200^2,0)*100 -> 4118400
... 9802 more rows

Sheet 参数说明
B1: DieEffect(int)
B2: 死亡播放效果 | D2: 1.大鱼普通转盘 | E2: 2.托盘鱼转盘 | F2: 3.BOSS死亡转盘
B4: Zorder(int)
B5: 层次顺序 | D5: 数值越大，层级越高
B7: DieParticle(str)
B8: 死亡粒子特效 | D8: 1.星星效果 | E8: 2.金币效果 | F8: 3.同类鱼闪电效果
B10: ShakeRange(int)
B11: 震动幅度 | D11: 数值越大，震动幅度越大
B13: Rate(int)
B14: 几率 | D14: 不用了，读FishRate(局部炸弹、全屏炸弹能够炸死鱼的倍率)
B17: DieEffect(int)
B18: 死亡播放效果
B19: 天天捕鱼 | D19: 小爆炸效果 散金币 类型 11 | E19: 大爆炸效果 散金币加粒子 类型 12 | F19: 击杀大BOSS爆炸效果 类型13
